bitfinex-derivatives/quotes_SOLF0:USTF0_20250820
["timestamp","ask_amount","ask_price","bid_price","bid_amount"]
[1755648203462,3.96820955,176.88,176.83,148.5]
[1755648203669,3.14,176.89,176.84,3.07]
[1755648203859,3.96829665,176.88,176.84,3.07]
[1755648204061,3.14,176.88,176.8,151.47]
[1755648204261,3.96967328,176.87,176.8,151.47]
[1755648204465,3.17600016,176.88,176.8,151.47]
[1755648204668,3.97012009,176.87,176.8,157.1265]
[1755648204869,0.03600016,176.88,176.81,3.07]
[1755648205370,0.03600016,176.88,176.83,3.07]
[1755648205965,0.03600016,176.88,176.84,3.07]
[1755648206169,0.03600016,176.88,176.85,3.07]
[1755648206569,0.03600016,176.88,176.86,3.07]
[1755648206768,0.03600016,176.88,176.8,148.4]
[1755648206971,0.03600016,176.88,176.85,3.07]
[1755648210173,0.03600016,176.88,176.85,3.19]
[1755648210373,0.03600016,176.88,176.86,3.19]
[1755648210571,0.03600016,176.88,176.87,3.19]
[1755648210769,0.03600016,176.88,176.84,5.6552]
[1755648210973,0.03600016,176.88,176.8,148.4]
[1755648210974,0.03600016,176.88,176.81,3.19]
[1755648211471,0.03600016,176.88,176.8,148.4]
[1755648211667,0.03600016,176.88,176.81,3.19]
[1755648212171,0.03600016,176.88,176.85,3.19]
[1755648212361,0.03600016,176.88,176.84,5.6551]
[1755648212362,0.03600016,176.88,176.86,3.19]
[1755648212566,0.03600016,176.88,176.85,5.6548]
[1755648212760,0.03600016,176.88,176.8,148.4]
[1755648212761,0.03600016,176.88,176.81,3.19]
[1755648213170,0.03600016,176.88,176.86,3.19]
[1755648213574,0.03600016,176.88,176.83,3.19]
[1755648213774,0.03600016,176.88,176.84,3.19]
[1755648213975,0.03600016,176.88,176.85,3.19]
[1755648215173,0.03600016,176.88,176.86,3.19]
[1755648215472,0.03600016,176.88,176.87,3.19]
[1755648215873,0.03600016,176.88,176.81,3.19]
[1755648216171,0.03600016,176.88,176.83,5.6554]
[1755648216376,0.03600016,176.88,176.85,3.19]
[1755648217273,3.02600016,176.88,176.79,3.19]
[1755648217581,3.97729583,176.87,176.8,148.2]
[1755648217878,2.99,176.91,176.81,3.19]
[1755648218077,3.97734007,176.9,176.81,3.19]
[1755648218275,3.97734007,176.89,176.81,3.19]
[1755648218575,3.97734007,176.88,176.8,148.2]
[1755648218770,3.97734007,176.87,176.8,148.2]
[1755648218966,3.97711508,176.86,176.8,148.2]
[1755648219170,2.99,176.89,176.8,148.2]
[1755648219374,3.97728624,176.88,176.8,148.2]
[1755648219571,3.97728624,176.87,176.8,153.8565]
[1755648219770,3.97728624,176.86,176.8,153.8565]
[1755648219971,2.99,176.89,176.8,148.2]
[1755648220169,3.97748748,176.88,176.8,148.2]
[1755648220374,3.97748748,176.87,176.8,148.2]
[1755648220681,6.96748748,176.86,176.8,148.2]
[1755648220978,2.99,176.84,176.8,148.2]
[1755648221274,2.99,176.83,176.8,148.2]
[1755648222577,3.97670966,176.82,176.77,380.02]
[1755648222779,2.99,176.8,176.72,218.90721705]
[1755648222982,0.03670127,176.84,176.7,3.19]
[1755648222983,2.99,176.78,176.7,3.19]
[1755648223180,3.97635261,176.77,176.7,151.37]
[1755648223377,0.03626253,176.76,176.7,151.37]
[1755648223974,3.97251437,176.75,176.7,3.19]
[1755648224171,0.03626253,176.76,176.7,3.19]
[1755648225286,0.03626253,176.76,176.74,3.19]
[1755648225488,6.17390244,176.87,176.74,3.19]
[1755648225786,6.95969429,176.86,176.74,3.19]
[1755648226080,2.99,176.9,176.74,3.19]
[1755648226384,3.97060385,176.89,176.74,3.19]
[1755648226587,3.97060385,176.88,176.74,3.19]
[1755648226786,2.99,176.9,176.8,5.6565]
[1755648227086,3.97116638,176.89,176.81,3.19]
[1755648227284,3.97116638,176.88,176.83,0.03583858]
[1755648227585,2.99,176.9,176.83,0.03583858]
[1755648227780,3.97116355,176.89,176.83,0.03583858]
[1755648227982,2.99,176.9,176.83,8.88143858]
[1755648228181,3.97126116,176.89,176.83,8.88143858]
[1755648228378,2.99,176.9,176.83,8.88143858]
[1755648228578,3.97035637,176.89,176.83,8.88143858]
[1755648228780,2.99,176.95,176.83,3.22583858]
[1755648229087,3.97031454,176.94,176.83,3.22583858]
[1755648229281,3.97031454,176.93,176.83,3.19]
[1755648229475,3.97031454,176.92,176.86,5.6544]
[1755648229686,2.99,176.95,176.86,8.8444]
[1755648229979,6.17390244,176.99,176.86,3.19]
[1755648230185,2.99,177.03,176.86,3.19]
[1755648230380,3.96857314,177.02,176.9,3.19]
[1755648230574,3.96857314,177.01,176.91,3.19]
[1755648230775,3.96857314,177.0,176.91,3.19]
[1755648230980,2.99,177.03,176.91,3.19]
[1755648231179,3.96871106,177.02,176.91,3.19]
[1755648231482,3.96871106,177.01,176.91,8.843]
[1755648231683,6.95871106,177.0,176.95,0.03655288]
[1755648231887,2.99,177.03,176.95,3.22655288]
[1755648232086,3.96753717,177.02,176.95,3.19]
[1755648232286,3.96753717,177.01,176.95,3.19]
[1755648232489,6.95753717,177.0,176.92,5.6526]
[1755648232787,2.99,177.0,176.92,5.6526]
[1755648232986,2.99,177.0,176.91,3.19]
[1755648233186,2.99,177.0,176.94,0.03663948]
[1755648233688,6.17390244,177.08,176.94,0.03663948]
[1755648233889,6.95627505,177.07,176.95,3.19]
[1755648234088,3.96627505,177.06,176.95,3.19]
[1755648234291,3.96627505,177.06,176.99,0.03595101]
[1755648235088,2.99,177.05,176.99,0.03595101]
[1755648235285,3.96627505,177.04,176.99,0.03595101]
[1755648235586,2.99,177.02,176.95,3.19]
[1755648235885,2.99,177.02,177.0,0.03754094]
[1755648236091,2.99,177.01,177.0,0.03754094]
[1755648237485,6.17390244,177.1,177.0,0.03754094]
[1755648237794,2.99,177.03,177.0,0.03754094]
[1755648238879,3.19,177.1,177.0,0.03754094]
[1755648239083,3.95721049,177.09,177.0,0.03754094]
[1755648239292,3.19,177.07,176.98,2.9]
[1755648239491,3.95721049,177.06,176.98,2.9]
[1755648239686,3.19,177.07,176.98,2.9]
[1755648239893,3.95583911,177.06,176.98,2.9]
[1755648240090,3.19,177.07,176.98,2.9]
[1755648240392,3.19,177.04,177.0,0.03623433]
[1755648240587,3.19,177.02,177.0,0.03623433]
[1755648240793,3.19,177.02,176.94,2.9]
[1755648240794,3.19,177.01,176.94,2.9]
[1755648240995,3.19,177.09,176.94,2.9]
[1755648241294,3.95306821,177.08,176.94,2.9]
[1755648241490,3.95306821,177.07,176.94,2.9]
[1755648241786,3.19,177.09,176.94,2.9]
[1755648242092,3.19,177.07,176.94,2.9]
[1755648242285,3.95295606,177.06,176.94,2.9]
[1755648242485,3.19,177.07,176.96,2.9]
[1755648242882,3.19,177.07,176.94,2.9]
[1755648243785,3.19,177.07,176.97,2.9]
[1755648244988,3.19,177.07,176.99,2.9]
[1755648247295,3.19,177.07,176.94,2.9]
[1755648247688,529.26330084,177.12,176.94,2.9]
[1755648247689,3.19,177.1,176.94,2.9]
[1755648247889,3.94264927,177.09,176.98,5.6506]
[1755648248090,3.94264927,177.08,176.99,2.9]
[1755648248290,3.19,177.1,176.99,2.9]
[1755648248483,3.94212399,177.09,176.99,8.5505]
[1755648248683,3.19,177.1,176.99,8.5505]
[1755648248885,3.94171147,177.09,176.99,8.5505]
[1755648249087,3.19,177.1,176.99,8.5505]
[1755648249288,3.94171147,177.09,176.99,8.5505]
[1755648249489,3.19,177.1,177.0,5.6501]
[1755648249996,3.19,177.1,177.01,2.9]
[1755648251091,3.19,177.1,177.04,0.04180504]
[1755648251999,3.19,177.13,177.04,2.94180504]
[1755648252400,3.19,177.13,177.04,2.9]
[1755648255898,3.19,177.13,177.04,8.5487]
[1755648256397,3.19,177.13,177.04,2.9]
[1755648258598,3.19,177.13,177.0,2.9]
[1755648258795,3.19,177.11,177.0,2.9]
[1755648259302,3.19,177.11,177.02,2.9]
[1755648260195,3.19,177.11,177.02,8.5493]
[1755648261106,3.19,177.11,177.04,2.9]
[1755648261409,3.19,177.15,177.04,2.9]
[1755648261609,3.19,177.13,177.04,2.9]
[1755648261907,3.19,177.13,177.04,8.5488]
[1755648262309,3.19,177.13,177.06,2.9]
[1755648262700,3.19,177.16,177.06,2.9]
[1755648263396,3.91529205,177.15,177.06,8.5482]
[1755648263607,3.19,177.16,177.06,8.5482]
[1755648263803,3.19,177.14,177.06,2.9]
[1755648267906,3.19,177.14,177.08,0.04115586]
[1755648269313,148.96281486,177.18,177.08,0.04115586]
[1755648269314,3.9330232,177.13,177.08,0.04115586]
[1755648269612,3.13,177.15,177.09,3.13]
[1755648269811,3.13,177.15,177.08,0.04115586]
[1755648269812,3.13,177.15,177.1,3.13]
[1755648270012,3.13,177.15,177.09,3.13]
[1755648270317,3.13,177.18,177.09,3.13]
[1755648270514,3.93973099,177.17,177.09,3.13]
[1755648270716,7.06973099,177.16,177.09,3.13]
[1755648271023,3.93973099,177.15,177.09,3.13]
[1755648271210,3.13,177.16,177.09,3.13]
[1755648271404,3.94350418,177.15,177.09,3.13]
[1755648271602,7.07350418,177.14,177.09,3.13]
[1755648271806,3.13,177.14,177.08,3.13]
[1755648272210,3.94261178,177.13,177.08,3.13]
[1755648272409,3.94530568,177.12,177.02,3.13]
[1755648272603,3.13,177.16,177.02,3.13]
[1755648272814,3.94565699,177.15,177.02,3.13]
[1755648273015,3.94565699,177.14,177.02,3.13]
[1755648273216,3.13,177.16,177.02,3.13]
[1755648273217,3.94565699,177.13,177.02,3.13]
[1755648273418,3.94949603,177.12,177.02,3.13]
[1755648273607,6.17390244,177.2,177.04,3.13]
[1755648273810,7.07989883,177.19,177.04,3.13]
[1755648274007,3.94989883,177.18,177.04,3.13]
[1755648274209,3.94989883,177.17,177.05,3.13]
[1755648274411,3.94989883,177.16,177.1,3.13]
[1755648274614,3.94989883,177.15,177.13,5.6458]
[1755648274814,3.13,177.19,177.13,5.6458]
[1755648274815,3.94989883,177.14,177.13,5.6458]
[1755648275010,3.94989883,177.14,177.12,0.04046961]
[1755648275207,3.13,177.19,177.14,5.6455]
[1755648275410,3.95374515,177.18,177.12,0.04046961]
[1755648275611,3.95374515,177.17,177.13,3.13]
[1755648275817,3.95374515,177.16,177.13,3.13]
[1755648276113,3.95374515,177.15,177.14,8.7757]
[1755648276910,0.03917136,177.17,177.15,5.6453]
[1755648277113,3.95386478,177.16,177.15,5.6453]
[1755648277618,3.13,177.25,177.15,3.69]
[1755648277818,3.13,177.25,177.15,3.13]
[1755648278019,3.13,177.25,177.19,5.6438]
[1755648278212,3.13,177.25,177.15,3.13]
[1755648278808,3.13,177.24,177.18,0.03908998]
[1755648279312,3.13,177.24,177.15,3.13]
[1755648279619,3.13,177.23,177.19,0.03605361]
[1755648279919,3.13,177.23,177.09,11.2943]
[1755648279920,3.13,177.29,177.18,3.13]
[1755648280312,3.13,177.29,177.19,0.0393921]
[1755648280714,3.13,177.29,177.21,5.6433]
[1755648281117,3.13,177.29,177.19,5.644]
[1755648281317,9.30390244,177.29,177.23,0.04110532]
[1755648281624,3.13,177.28,177.17,5.6445]
[1755648281823,3.13,177.28,177.14,3.13]
[1755648282018,3.13,177.28,177.24,0.03653859]
[1755648282215,3.13,177.28,177.18,5.6442]
[1755648282519,3.13,177.28,177.24,0.04093886]
[1755648282918,3.13,177.28,177.18,5.6442]
[1755648283119,3.13,177.28,177.24,0.03765613]
[1755648283319,0.9822046,177.3,177.24,0.03765613]
[1755648283520,3.13,177.26,177.18,3.13]
[1755648283824,3.13,177.26,177.25,0.04037814]
[1755648284021,3.13,177.26,177.21,5.6435]
[1755648284416,3.13,177.26,177.24,0.04033158]
[1755648284925,3.13,177.26,177.19,3.13]
[1755648285119,3.13,177.26,177.23,0.03927574]
[1755648285316,3.13,177.29,177.23,0.03927574]
[1755648287426,3.13,177.29,177.23,5.68197574]
[1755648287821,3.13,177.29,177.23,0.03927574]
[1755648289723,3.13,177.27,177.23,0.03927574]
[1755648290133,3.13,177.27,177.23,3.16927574]
[1755648290330,3.13,177.32,177.23,3.16927574]
[1755648290522,3.91781236,177.31,177.23,3.16927574]
[1755648290722,3.91781236,177.3,177.23,8.81207574]
[1755648290924,3.91781236,177.29,177.23,3.16927574]
[1755648291224,3.13,177.32,177.23,3.16927574]
[1755648291425,3.91751389,177.31,177.23,3.16927574]
[1755648291731,3.91751389,177.3,177.23,8.81207574]
[1755648291930,3.91751389,177.29,177.23,8.81207574]
[1755648292132,3.13,177.32,177.23,8.81207574]
[1755648292328,3.91760992,177.31,177.23,8.81207574]
[1755648292529,3.91760992,177.3,177.23,8.81207574]
[1755648292729,3.91760992,177.29,177.23,8.81207574]
[1755648292928,3.13,177.32,177.23,8.81207574]
[1755648293130,3.919013,177.31,177.23,8.81207574]
[1755648293332,3.13,177.32,177.23,3.16927574]
[1755648293531,3.91915258,177.31,177.23,3.16927574]
[1755648293728,3.91913912,177.3,177.23,8.81187574]
[1755648293934,3.13,177.32,177.23,8.81187574]
[1755648294230,3.91912975,177.31,177.23,3.16927574]
[1755648294432,7.04912975,177.3,177.23,3.16927574]
[1755648294626,3.13,177.3,177.23,3.16927574]
[1755648294827,3.91906744,177.29,177.23,3.13]
[1755648295027,148.50185819,177.35,177.25,0.03968393]
[1755648295331,3.13,177.33,177.25,0.03968393]
[1755648295632,3.13,177.31,177.19,3.13]
[1755648295832,3.13,177.29,177.27,0.04300664]
[1755648296032,7.04854851,177.28,177.19,3.13]
[1755648296236,3.13,177.28,177.19,3.13]
[1755648296426,3.13,177.27,177.26,0.04006955]
[1755648296627,3.13,177.27,177.2,5.6436]
[1755648296828,3.13,177.27,177.19,3.13]
[1755648297026,9.30390244,177.34,177.25,0.03945601]
[1755648297229,3.13,177.32,177.19,3.13]
[1755648297429,3.13,177.3,177.19,3.13]
[1755648297735,148.50185819,177.35,177.19,8.774]
[1755648297736,3.13,177.28,177.19,8.774]
[1755648297938,3.13,177.26,177.19,3.13]
[1755648298735,3.13,177.26,177.21,0.04072783]
[1755648298936,3.13,177.26,177.22,3.19]
[1755648299832,3.02,177.33,177.22,3.19]
[1755648300034,3.02,177.31,177.22,3.19]
[1755648300337,3.02,177.29,177.22,3.19]
[1755648300525,6.17390244,177.34,177.25,0.03922587]
[1755648300526,3.02,177.27,177.25,0.03922587]
[1755648301338,3.02,177.34,177.25,0.03922587]
[1755648301530,3.02,177.32,177.25,0.03922587]
[1755648301730,3.921291,177.31,177.25,0.03922587]
[1755648303035,3.02,177.3,177.25,0.03922587]
[1755648303235,3.02,177.27,177.25,0.03922587]
[1755648303439,6.941291,177.26,177.25,0.03922587]
[1755648304645,3.921291,177.26,177.25,0.03922587]
[1755648305140,6.941291,177.26,177.25,0.03922587]
[1755648305344,3.02,177.25,177.08,3.19]
[1755648305543,3.02,177.23,177.08,3.19]
[1755648305839,3.921291,177.22,177.12,3.19]
[1755648306236,3.02,177.2,177.07,382.65]
[1755648306434,16.96,177.28,177.07,382.65]
[1755648306435,3.02,177.18,177.07,382.65]
[1755648306643,3.921291,177.17,177.07,382.65]
[1755648306835,3.92406984,177.16,177.07,382.65]
[1755648307140,3.02,177.22,177.08,3.19]
[1755648307336,0.04171152,177.13,177.09,5.6472]
[1755648307638,3.02,177.22,177.08,3.19]
[1755648307839,3.02,177.22,177.09,5.6471]
[1755648307840,0.03804303,177.13,177.09,5.6471]
[1755648308143,3.02,177.22,177.1,3.19]
[1755648308437,0.03763969,177.13,177.1,5.6468]
[1755648308636,0.03763969,177.13,177.09,3.19]
[1755648308840,3.02,177.19,177.09,3.19]
[1755648309139,0.04330384,177.12,177.09,3.19]
[1755648309343,6.17390244,177.21,177.09,3.19]
[1755648309344,3.02,177.17,177.09,3.19]
[1755648309639,0.04017114,177.12,177.09,3.19]
[1755648309842,0.04017114,177.12,177.08,3.19]
[1755648310241,0.04017114,177.12,177.1,3.19]
[1755648310441,0.04017114,177.12,177.11,3.19]
[1755648312040,3.02,177.21,177.11,3.19]
[1755648312342,3.93065761,177.2,177.11,8.8364]
[1755648312544,3.93065761,177.19,177.11,8.8364]
[1755648312740,3.93065761,177.18,177.11,8.8364]
[1755648312941,3.93065761,177.17,177.11,3.19]
[1755648313140,3.02,177.21,177.11,3.19]
[1755648313347,3.02,177.19,177.13,0.03736226]
[1755648313642,3.02,177.17,177.13,0.03736226]
[1755648313843,3.02,177.17,177.12,3.19]
[1755648314044,3.02,177.17,177.14,0.03604852]
[1755648314344,3.02,177.22,177.14,0.03604852]
[1755648314542,3.93413029,177.21,177.14,0.03604852]
[1755648314738,3.93413029,177.2,177.14,0.03604852]
[1755648314938,6.95413029,177.19,177.14,0.03604852]
[1755648315140,3.93413029,177.18,177.14,0.03604852]
[1755648315337,3.93413029,177.17,177.14,0.03604852]
[1755648315539,3.02,177.19,177.14,0.03604852]
[1755648315741,6.95441783,177.18,177.14,0.03604852]
[1755648315943,3.93441783,177.17,177.14,0.03604852]
[1755648316142,3.02,177.18,177.14,0.03604852]
[1755648316343,3.93441956,177.17,177.14,0.03604852]
[1755648316549,3.02,177.18,177.14,0.03604852]
[1755648316748,3.93466666,177.17,177.14,0.03604852]
[1755648317047,3.93384449,177.16,177.14,0.03604852]
[1755648317249,3.02,177.28,177.15,3.19]
[1755648317447,3.93552502,177.27,177.15,3.19]
[1755648317649,3.02,177.3,177.15,3.19]
[1755648317845,3.93632991,177.29,177.21,5.6431]
[1755648318047,3.93632991,177.28,177.22,3.19]
[1755648318250,3.02,177.3,177.22,3.19]
[1755648318441,3.93694641,177.29,177.22,3.19]
[1755648318646,3.93694641,177.28,177.22,3.19]
[1755648318845,3.02,177.3,177.22,3.19]
[1755648319042,3.02,177.28,177.21,0.03945482]
[1755648319251,3.93824268,177.27,177.21,0.03945482]
[1755648319453,6.95824268,177.26,177.21,0.03945482]
[1755648319656,6.95824268,177.25,177.21,0.03945482]
[1755648319944,3.93824268,177.24,177.21,0.03945482]
[1755648320544,3.02,177.23,177.21,0.03945482]
[1755648320744,3.93824268,177.22,177.21,0.03945482]
[1755648320943,6.95824268,177.22,177.21,0.03945482]
[1755648321649,3.93824268,177.22,177.21,0.03945482]
[1755648321852,3.02,177.24,177.21,0.03945482]
[1755648322049,3.93824268,177.23,177.21,0.03945482]
[1755648322449,3.02,177.28,177.21,3.22945482]
[1755648322647,3.9404023,177.27,177.21,3.22945482]
[1755648322842,6.9604023,177.26,177.21,3.22945482]
[1755648323049,6.9604023,177.25,177.21,0.03945482]
[1755648323245,3.9400727,177.24,177.21,0.03945482]
[1755648323442,3.02,177.25,177.21,0.03945482]
[1755648323949,0.98185819,177.35,177.21,0.03945482]
[1755648323950,3.02,177.3,177.21,3.22945482]
[1755648324149,3.94039699,177.29,177.21,3.22945482]
[1755648324340,3.94039699,177.28,177.21,3.19]
[1755648324540,3.94039699,177.27,177.23,0.04167885]
[1755648324743,3.94039699,177.26,177.23,0.04167885]
[1755648324942,6.17390244,177.32,177.24,3.19]
[1755648324943,0.74039699,177.25,177.24,3.19]
[1755648325149,3.02,177.34,177.24,3.19]
[1755648326051,3.02,177.34,177.27,0.039961]
[1755648327446,9.19390244,177.4,177.27,3.229961]
[1755648327658,3.02,177.4,177.27,3.229961]
[1755648327953,3.02,177.4,177.27,3.19]
[1755648328151,3.02,177.4,177.32,0.037559]
[1755648332060,3.02,177.4,177.32,3.027559]
[1755648333958,3.18,177.43,177.32,3.027559]
[1755648334356,3.18,177.43,177.32,2.99]
[1755648337154,3.91889216,177.42,177.32,2.99]
[1755648337359,3.91889216,177.41,177.32,2.99]
[1755648337657,3.91889216,177.4,177.32,2.99]
[1755648337858,3.91889216,177.39,177.32,2.99]
[1755648338162,3.18,177.43,177.32,2.99]
[1755648338462,3.91776444,177.42,177.32,2.99]
[1755648338662,7.09776444,177.41,177.32,2.99]
[1755648338862,3.91776444,177.4,177.32,2.99]
[1755648339065,3.18,177.41,177.32,2.99]
[1755648339369,3.91511132,177.4,177.32,2.99]
[1755648339556,3.18,177.41,177.32,2.99]
[1755648339762,3.91382572,177.4,177.32,2.99]
[1755648339958,3.18,177.41,177.32,2.99]
[1755648341163,3.18,177.41,177.21,2.99]
[1755648341471,3.18,177.41,177.28,2.99]
[1755648341966,3.18,177.41,177.3,2.99]
[1755648343165,3.18,177.41,177.3,8.6306]
[1755648343466,3.18,177.41,177.31,2.99]
[1755648345364,3.18,177.41,177.28,2.99]
[1755648347766,3.18,177.41,177.29,2.99]
[1755648349773,3.18,177.41,177.31,2.99]
[1755648351967,3.18,177.41,177.31,5.6402]
[1755648352168,3.18,177.41,177.32,2.99]
[1755648353173,3.18,177.41,177.32,8.63]
[1755648353374,3.18,177.41,177.32,5.64]
[1755648353573,3.18,177.41,177.33,2.99]
[1755648356578,3.18,177.41,177.33,8.6294]
[1755648356873,3.18,177.45,177.34,2.99]
[1755648360180,3.18,177.45,177.2,385.52499545]
[1755648360383,9.32390244,177.42,177.21,3.09]
[1755648360583,3.15,177.41,177.21,3.09]
[1755648360883,3.15,177.4,177.21,3.09]
[1755648361287,3.15,177.4,177.23,3.09]
[1755648361981,9.32390244,177.4,177.23,3.09]
[1755648362185,6.17390244,177.4,177.23,3.09]
[1755648362386,3.15,177.39,177.23,5.6426]
[1755648362586,0.15,177.34,177.24,3.09]
[1755648363289,0.15,177.34,177.26,3.09]
[1755648364192,9.32390244,177.43,177.26,3.09]
[1755648364384,3.15,177.43,177.26,3.09]
[1755648365789,3.15,177.43,177.29,3.09]
[1755648366285,6.17390244,177.44,177.23,3.09]
[1755648366477,3.15,177.44,177.25,9.35499545]
[1755648366685,3.15,177.44,177.26,3.09]
[1755648366983,3.15,177.44,177.32,3.09]
[1755648367381,6.17390244,177.43,177.32,3.09]
[1755648367788,3.15,177.42,177.32,3.09]
[1755648369295,9.32390244,177.42,177.32,3.09]
[1755648371599,9.32390244,177.42,177.32,8.7299]
[1755648371795,3.15,177.42,177.33,3.09]
[1755648372395,12.34780489,177.5,177.2,555.63168973]
[1755648372396,3.15,177.4,177.3,3.09]
[1755648372589,9.32390244,177.4,177.3,3.09]
[1755648373398,3.15,177.4,177.3,3.09]
[1755648377990,3.15,177.4,177.3,5.6404]
[1755648378193,3.15,177.4,177.31,3.09]
[1755648380487,3.15,177.43,177.31,3.09]
[1755648380896,3.15,177.43,177.32,3.09]
[1755648386998,9.32390244,177.43,177.32,3.09]
[1755648387203,3.15,177.42,177.32,3.09]
[1755648398022,3.15,177.42,177.32,8.7298]
[1755648398314,3.15,177.42,177.33,3.06]
[1755648399215,3.15,177.42,177.33,8.6996]
[1755648399410,3.15,177.42,177.34,3.06]
[1755648400013,3.15,177.42,177.34,8.6993]
[1755648400212,3.15,177.42,177.35,3.06]
[1755648402021,2.92,177.45,177.36,5.6386]
[1755648402320,2.92,177.45,177.37,3.06]
[1755648402718,2.92,177.45,177.37,8.6984]
[1755648402916,2.92,177.45,177.38,3.06]
[1755648403317,2.92,177.45,177.38,8.698]
[1755648403511,2.92,177.45,177.38,5.638]
[1755648403717,2.92,177.45,177.39,3.06]
[1755648403911,2.92,177.5,177.4,5.6374]
[1755648404217,2.92,177.5,177.41,3.06]
[1755648404712,2.92,177.5,177.41,8.6969]
[1755648405523,2.92,177.5,177.41,3.06]
[1755648406422,2.92,177.5,177.42,3.06]
[1755648406916,2.92,177.5,177.39,146.12]
[1755648406917,2.92,177.5,177.43,5.6364]
[1755648407214,2.92,177.5,177.44,3.06]
[1755648407418,2.92,177.5,177.44,8.6961]
[1755648408009,2.92,177.53,177.45,3.06]
[1755648408213,2.92,177.53,177.45,8.6958]
[1755648408723,2.92,177.53,177.46,5.6355]
[1755648409318,2.92,177.53,177.45,8.6957]
[1755648409621,2.92,177.53,177.46,3.06]
[1755648415029,152.29390244,177.6,177.46,3.06]
[1755648415327,2.92,177.59,177.46,3.06]
[1755648416219,2.92,177.59,177.46,8.6955]
[1755648416425,2.92,177.59,177.47,3.06]
[1755648416826,2.92,177.59,177.47,8.6952]
[1755648418027,2.92,177.59,177.48,3.06]
[1755648418528,2.92,177.59,177.48,8.6949]
[1755648420929,2.92,177.59,177.38,217.84545431]
[1755648421128,2.92,177.59,177.44,2.93]
[1755648421527,2.92,177.59,177.46,5.6353]
[1755648421722,2.92,177.59,177.47,2.93]
[1755648427942,9.09390244,177.59,177.39,2.93]
[1755648428141,2.88,177.57,177.39,2.93]
[1755648428639,6.17390244,177.55,177.39,2.93]
[1755648428830,2.88,177.49,177.39,2.93]
[1755648429644,2.88,177.49,177.41,5.6371]
[1755648429846,0.04238906,177.46,177.42,2.93]
[1755648430044,0.04238906,177.46,177.38,217.84545431]
[1755648430253,0.04238906,177.46,177.39,2.93]
[1755648430748,2.88,177.52,177.45,2.93]
[1755648431251,2.88,177.55,177.45,2.93]
[1755648431452,2.88,177.55,177.45,8.5658]
[1755648431754,2.88,177.55,177.46,2.93]
[1755648431944,2.88,177.55,177.46,8.5654]
[1755648432148,2.88,177.55,177.48,2.97042755]
[1755648435149,2.88,177.55,177.48,0.04042755]
[1755648437953,2.88,177.55,177.49,2.93]
[1755648438552,2.88,177.55,177.48,0.04042755]
[1755648441251,2.88,177.55,177.48,2.97042755]
[1755648446166,2.88,177.55,177.48,0.04042755]
[1755648446560,2.88,177.55,177.48,2.97042755]
[1755648449670,2.88,177.55,177.48,0.04042755]
[1755648451768,6.17390244,177.58,177.48,0.04042755]
[1755648451968,3.02,177.57,177.49,3.11]
[1755648452771,3.02,177.57,177.51,0.04268183]
[1755648455464,3.02,177.57,177.51,3.15268183]
[1755648456972,3.02,177.57,177.51,0.04268183]